Cogmind - Beta 16.1 *** ADVENTURER MODE // 2026.02.16 @ 22:01:34 Player: 301f1d Result: Self-destructed Performance ------------- Evolutions (2) 1000 Regions Visited (5) 1000 Robots Destroyed (23) 115 Value Destroyed (299) 299 Prototype IDs (25) 500 Alien Tech Used (0) 0 Bonus (307) 307 TOTAL SCORE: 3221 Bonus ------- Follower Combat Kills 7 Aligned with FarCom 300 Cogmind --------- Core Integrity 472/550 Matter 300/300 Energy 275/275 System Corruption 0% Temperature Cool (0) Movement Core (400) Ox7 Location -8/Materials Parts ------- > --- POWER (1) -------- Deuterium Engine > --- PROPULSION (4) --- (None) > --- UTILITY (4) ------ Medium Storage Unit Structural Scanner Advanced Targeting Computer > --- WEAPON (2) ------- Improved Assault Rifle > --- INVENTORY (10) --- Ion Engine Light Ion Engine Cesium-ion Thruster Medium Battery (150) Superbattery (1500) High-capacity Matter Pod (200) Improved Terrain Scanner Cloak of Protection Mini Grenade Launcher Mining Laser Peak State ------------ > --- POWER ------------ Ion Engine > --- PROPULSION ------- Improved Aluminum Leg > --- UTILITY ---------- Medium Storage Unit Medium Battery Superbattery Cloak of Protection > --- WEAPON ----------- High-powered Shotgun Mining Laser > --- INVENTORY -------- High-capacity Matter Pod Structural Scanner Improved Terrain Scanner Assault Rifle Signal Generator Deploy-a-Sentry [Rating: 28] Favorites ----------- Power Ion Engine Engine Ion Engine Propulsion Aluminum Leg Leg Aluminum Leg Wheel Wheel Hover Unit Aerolev Unit Flight Unit Flight Unit Utility Medium Storage Unit Device Structural Scanner Storage Medium Storage Unit Processor Advanced Targeting Computer Protection Medium Armor Plating Weapon Assault Rifle Ballistic Gun Assault Rifle Special Weapon Mining Laser Build | -11 -10 -10 -10 -9 -8 ------- Run | Yrd Mat Min Exi Min Mat Slots Evolved 4 | . . . . . 4 Power . | . . . . . . Propulsion 2 | . . . . . 2 Utility 2 | . . . . . 2 Weapon . | . . . . . . Parts Attached 34 | 11 5 1 2 1 14 Power 4 | 1 . . . . 3 Engine 4 | 1 . . . . 3 Core . | . . . . . . Reactor . | . . . . . . Propulsion 10 | 2 2 . . 1 5 Treads . | . . . . . . Leg 3 | 2 . . . 1 . Wheel 2 | . 2 . . . . Hover 1 | . . . . . 1 Flight 4 | . . . . . 4 Utility 12 | 4 2 1 2 . 3 Device 5 | 3 1 . 1 . . Storage 4 | 1 . 1 1 . 1 Processor 1 | . . . . . 1 Hackware . | . . . . . . Protection 2 | . 1 . . . 1 Artifact . | . . . . . . Weapon 8 | 4 1 . . . 3 Energy Gun . | . . . . . . Energy Cannon . | . . . . . . Ballistic Gun 6 | 3 . . . . 3 Ballistic Cannon . | . . . . . . Launcher . | . . . . . . Special Weapon 2 | 1 1 . . . . Impact Weapon . | . . . . . . Slashing Weapon . | . . . . . . Piercing Weapon . | . . . . . . Special Melee Weapon . | . . . . . . Unidentified Prototypes 3 | . . . 1 . 2 Parts Lost 7 | . . . . 4 3 Power 1 | . . . . 1 . Propulsion 3 | . . . . 2 1 Utility 1 | . . . . . 1 Weapon 2 | . . . . 1 1 Highest Loss Streak 4 | . . . . 4 3 To Critical Strikes . | . . . . . . Average Backups 7 | 5 7 6 7 7 7 Power 1 | . 1 1 1 1 1 Propulsion . | 2 2 . . . . Utility 4 | 1 2 4 5 5 4 Weapon 1 | . . 1 1 1 1 Tool/Special . | . . . . . . Unused Backups 12 | 1 5 . 2 . 4 Power 3 | . 2 . . . 1 Propulsion 4 | 1 3 . . . . Utility 3 | . . . 2 . 1 Weapon 2 | . . . . . 2 Tool/Special . | . . . . . . Average Slot Usage (%) 90 | . 99 100 100 82 65 Engine 12 | . 14 14 14 8 9 Leg 20 | . 16 27 28 22 9 Wheel 2 | . 12 . . . . Device 9 | . 12 14 8 . 8 Storage 17 | . 14 14 19 28 17 Ballistic Gun 22 | . 25 26 27 22 12 Special Weapon 1 | . 2 1 . . 4 Peak Build Rating 28 | 9 9 10 18 19 28 Average Rating 12 | 7 8 8 11 17 19 On Entrance 9 | . 9 8 8 18 16 Avg Prop Armor Cover (%) 6 | . . . . . 6 Naked Turns . | . . . . . . Heaviest Build 33 | 15 17 20 27 23 33 Greatest Support 20 | 20 20 20 20 20 13 Greatest Overweight (x) 7 | 3 . . 1 1 7 Average Overweight (x) . | . . . . 1 1 Largest Inventory Capacity 10 | 8 8 10 10 10 10 Average Capacity 9 | 7 8 8 10 10 10 Most Carried 10 | 8 8 8 10 10 10 Average Carried 7 | 5 7 7 8 9 8 Final Capacity 10 | 8 8 10 10 10 10 Final Carried 10 | 8 8 8 10 9 10 Class Distribution -------------------- 97% | Mutant Dominant Class ---------------- Mutant | -10/Materials Mutant | -10/Mines Mutant | -10/Exiles Mutant | -9/Mines Mutant | -8/Materials Resources | -11 -10 -10 -10 -9 -8 ----------- Run | Yrd Mat Min Exi Min Mat Matter Collected 977 | 319 187 132 20 20 299 Remotely 92 | 15 77 . . . . Salvage Created 448 | 117 208 . . . 123 Parts 48 | 12 19 . . . 17 Haulers Intercepted . | . . . . . . Recyclers Shooed . | . . . . . . Parts Field Recycled . | . . . . . . Retrieved Matter . | . . . . . . Parts Self-Destructed . | . . . . . . Prevented . | . . . . . . Parts Restored . | . . . . . . Kills | -11 -10 -10 -10 -9 -8 ------- Run | Yrd Mat Min Exi Min Mat Combat Hostiles Destroyed 17 | . 8 . . 1 8 Guns 17 | . 8 . . 1 8 Classes Destroyed 7 | 2 4 . . . 1 Builder 1 | . 1 . . . . Tunneler 3 | 3 . . . . . Recycler 1 | 1 . . . . . Mechanic 1 | . 1 . . . . Swarmer 13 | . 6 . . . 7 Grunt 2 | . 2 . . . . Hunter 1 | . . . . . 1 Best Kill Streak 5 | 2 5 . . 1 4 Combat Bots Only 4 | . 4 . . 1 4 Max Kills in Single Turn 2 | 1 2 . . 1 1 Gunslinging 1 | . 1 . . . . Exploded . | . . . . . . Melee . | . . . . . . Uniques/NPCs Destroyed 1 | . . . . 1 . YI-UF0 (-9/Mines) Combat | -11 -10 -10 -10 -9 -8 -------- Run | Yrd Mat Min Exi Min Mat Hostile Shots Fired 154 | . 32 . . 11 111 Missed 49 | . 11 . . 1 37 Hits 105 | . 21 . . 10 74 Projectile 105 | . 21 . . 10 74 AOE 16 | . . . . 16 . Critical Strikes 1 | . . . . . 1 Damage Taken 1341 | 187 149 . . 386 619 Core 256 | 147 8 . . 23 78 Absorbed by Shields . | . . . . . . Ignored by Resistances 346 | . 51 . . 105 190 Regen/Repaired (Parts) 86 | . 86 . . . . Core Remaining (%) 34 | 41 . . . 28 . Volleys Fired 72 | 21 26 4 . 3 18 Largest 2 | 2 2 1 . 2 2 Hottest 125 | 100 40 100 . 40 125 Shots Fired 114 | 31 42 4 . 5 32 Gun 83 | 20 32 . . 5 26 Cannon . | . . . . . . Launcher . | . . . . . . Special 31 | 11 10 4 . . 6 Kinetic 83 | 20 32 . . 5 26 Thermal 31 | 11 10 4 . . 6 Explosive . | . . . . . . Electromagnetic . | . . . . . . Robot Hit Streak 19 | 17 19 . . 6 13 Robot Miss Streak 4 | 1 3 . . . 4 Penetration Max . | . . . . . . Secondary Targets 2 | . 2 . . . . Max Gunslinging Chain 1 | . 1 . . . . Shots Hit Robots 67 | 17 22 . . 5 23 Core Hits 33 | 7 14 . . 1 11 Critical Kills . | . . . . . . Critical Parts Destroyed . | . . . . . . Critical Strikes . | . . . . . . Melee Attacks . | . . . . . . Impact . | . . . . . . Slashing . | . . . . . . Piercing . | . . . . . . Sneak Attacks . | . . . . . . Combat Hostiles . | . . . . . . Follow-up Attacks . | . . . . . . Damage Inflicted 932 | 180 304 . . 70 378 Guns 932 | 180 304 . . 70 378 Cannons . | . . . . . . Explosions . | . . . . . . Melee . | . . . . . . Ramming . | . . . . . . Kinetic 932 | 180 304 . . 70 378 Thermal . | . . . . . . Explosive . | . . . . . . Electromagnetic . | . . . . . . Impact . | . . . . . . Slashing . | . . . . . . Piercing . | . . . . . . Highest Corruption . | . . . . . . Average Corruption . | . . . . . . Corruption Purged . | . . . . . . Corruption Blocked . | . . . . . . Overload Shots . | . . . . . . Overflow Damage . | . . . . . . Projectiles . | . . . . . . Explosions . | . . . . . . Melee . | . . . . . . Knockbacks . | . . . . . . Impact . | . . . . . . Kinetic . | . . . . . . Secondary . | . . . . . . Self-Inflicted Damage . | . . . . . . Shots . | . . . . . . Rammed . | . . . . . . Targets Rammed . | . . . . . . Kicked . | . . . . . . Crushed . | . . . . . . Highest Temperature 60 | 60 . 44 . . 20 Average Temperature 19 | 20 . 17 . . 12 Received Heat Transfer 255 | . 66 . . . 189 Siege Activations . | . . . . . . Martial Activations . | . . . . . . Shielding Activations . | . . . . . . Robots Disrupted . | . . . . . . Combat Hostiles . | . . . . . . Robots Corrupted . | . . . . . . Combat Hostiles . | . . . . . . Parts Fried . | . . . . . . Impact Corruptions . | . . . . . . Robots Melted . | . . . . . . Combat Hostiles . | . . . . . . Parts Melted . | . . . . . . Heat Transferred . | . . . . . . Parts Sabotaged . | . . . . . . Parts Stolen . | . . . . . . Parts Stripped . | . . . . . . Power Chain Reactions . | . . . . . . Alert | -11 -10 -10 -10 -9 -8 ------- Run | Yrd Mat Min Exi Min Mat Maximum Alert Level . | . . . . . . Low Security (%) 100 | 100 100 100 . 100 100 Level 1 . | . . . . . . Level 2 . | . . . . . . Level 3 . | . . . . . . Level 4 . | . . . . . . Level 5 . | . . . . . . High Security . | . . . . . . Max Security . | . . . . . . Peak Influence 150 | 5 150 14 . . 132 Initial 14 | . . 14 . . . Average 25 | . 65 . . . 32 Influence Increases 432 | 20 200 . . . 212 Destroy 0b10 Robot/C 340 | . 160 . . . 180 Destroy 0b10 Robot/NC 30 | 20 10 . . . . Destroy Leader 60 | . 30 . . . 30 Allied During Kill 1 | . . . . . 1 Destroy Structure 1 | . . . . . 1 Influence Decreases 432 | 20 155 45 . . 212 Entered New Map 31 | . . 31 . . . Time Decay 361 | 20 155 14 . . 172 Lost Part 20 | . . . . . 20 Lost Ally 20 | . . . . . 20 Squads Dispatched 3 | . 1 . . . 2 Investigation 1 | . 1 . . . . Extermination . | . . . . . . Reinforcement 1 | . . . . . 1 Assault 1 | . . . . . 1 Garrison . | . . . . . . Intercept . | . . . . . . Searches Triggered . | . . . . . . Construction Impeded . | . . . . . . Haulers Reinforced . | . . . . . . Active Scanning Responses . | . . . . . . Cargo Convoy Interrupts . | . . . . . . Stealth | -11 -10 -10 -10 -9 -8 --------- Run | Yrd Mat Min Exi Min Mat Distress Signals 4 | . 2 . . . 2 Communications Jammed . | . . . . . . Distress Signals . | . . . . . . Times Spotted 33 | . 13 . . 3 17 Peak Tracking Total 6 | . 5 . . 2 6 Tactical Retreats . | . . . . . . Traps | -11 -10 -10 -10 -9 -8 ------- Run | Yrd Mat Min Exi Min Mat Traps Triggered 2 | . 2 . . . . Indirectly . | . . . . . . Trap Hack Attempts . | . . . . . . Triggered . | . . . . . . Disarmed . | . . . . . . Reprogrammed . | . . . . . . Reused . | . . . . . . Traps Extracted . | . . . . . . Installed . | . . . . . . Triggered . | . . . . . . Machines | -11 -10 -10 -10 -9 -8 ---------- Run | Yrd Mat Min Exi Min Mat Machines Disabled . | . . . . . . Max in Single Turn . | . . . . . . Machines Repaired . | . . . . . . Machines Dismantled . | . . . . . . Machines Sabotaged . | . . . . . . Overloaded Fab Kills . | . . . . . . Hacking | -11 -10 -10 -10 -9 -8 --------- Run | Yrd Mat Min Exi Min Mat Machines Accessed 7 | . 1 . 5 . 1 Terminals 1 | . . . . . 1 Fabricators . | . . . . . . Repair Stations 1 | . 1 . . . . Recycling Units . | . . . . . . Scanalyzers . | . . . . . . Garrison Access . | . . . . . . Total Hacks 54 | . 2 . 50 . 2 Successful 54 | . 2 . 50 . 2 Failed . | . . . . . . Catastrophic . | . . . . . . Database Lockouts . | . . . . . . Manual 6 | . . . 6 . . Terminals 2 | . . . . . 2 Fabricators . | . . . . . . Repair Stations 2 | . 2 . . . . Recycling Units . | . . . . . . Scanalyzers . | . . . . . . Garrison Access . | . . . . . . Terminal Hacks 52 | . . . 50 . 2 Record 50 | . . . 49 . 1 Hauler Manifests 1 | . . . . . 1 Proto ID Catalog 1 | . . . 1 . . Fabricator Hacks . | . . . . . . Repair Station Hacks 2 | . 2 . . . . Scan Component 1 | . 1 . . . . Repair 1 | . 1 . . . . Recycling Unit Hacks . | . . . . . . Scanalyzer . | . . . . . . Garrison Access Hacks . | . . . . . . Unauthorized Hacks . | . . . . . . Terminals . | . . . . . . Fabricators . | . . . . . . Repair Stations . | . . . . . . Recycling Units . | . . . . . . Scanalyzers . | . . . . . . Garrison Access . | . . . . . . Data Cores Recovered . | . . . . . . Used . | . . . . . . Hacking Detections 1 | . 1 . . . . Full Trace Events . | . . . . . . Feedback Events . | . . . . . . Feedback Blocked . | . . . . . . Robot Schematics Acquired . | . . . . . . Robots Built . | . . . . . . Authchips . | . . . . . . Time . | . . . . . . Total Robot Build Rating . | . . . . . . Part Schematics Acquired . | . . . . . . Parts Built . | . . . . . . Authchips . | . . . . . . Time . | . . . . . . Total Part Build Rating . | . . . . . . Part Studies Acquired . | . . . . . . Parts Repaired 1 | . 1 . . . . Time 26 | . 26 . . . . Parts Recycled . | . . . . . . Recycled Matter . | . . . . . . Retrieved Matter . | . . . . . . Retrieved Components . | . . . . . . Parts Scanalyzed . | . . . . . . Part Schematics Acquired . | . . . . . . Parts Damaged . | . . . . . . Bothacking | -11 -10 -10 -10 -9 -8 ------------ Run | Yrd Mat Min Exi Min Mat Used RIF Installer . | . . . . . . Robots Hacked . | . . . . . . Non-combat . | . . . . . . Combat . | . . . . . . Robot Hacks Applied . | . . . . . . Relay Couplers Released . | . . . . . . Fabnet Peak Effective % . | . . . . . . Robots Rewired . | . . . . . . Allies Hacked . | . . . . . . Hacks Repelled . | . . . . . . Allies | -11 -10 -10 -10 -9 -8 -------- Run | Yrd Mat Min Exi Min Mat Total Allies 2 | . . 2 . . . Largest Group 2 | . . 2 2 . . Highest-Rated Group 44 | . . 44 44 . . Highest-Rated Ally 31 | . . 31 31 . . Total Orders . | . . . . . . Ally Attacks 8 | . . . . . 8 Total Damage 318 | . . . . . 318 Kills 1 | . . . . . 1 Allies Corrupted . | . . . . . . Allies Melted 1 | . . . . . 1 Turrets Deployed 1 | . . . . . 1 Intel | -11 -10 -10 -10 -9 -8 ------- Run | Yrd Mat Min Exi Min Mat Active Infowar (turns) 2174 | 137 292 465 581 . 699 Terrain 342 | 91 150 101 . . . Structural 1635 | . 142 364 562 . 567 Seismic 46 | 46 . . . . . Cloaking 151 | . . . 19 . 132 Robot Analysis Total . | . . . . . . Derelict Logs Recovered 2 | . . 2 . . . Drone Launches . | . . . . . . Drone Recoveries . | . . . . . . Exploration | -11 -10 -10 -10 -9 -8 ------------- Run | Yrd Mat Min Exi Min Mat Turns Passed 2876 | 279 410 465 925 97 700 Spaces Moved 1699 | 145 278 328 634 45 269 Core 7 | 6 . . . . 1 Treads . | . . . . . . Legs 1538 | 139 132 325 634 45 263 Wheels 149 | . 146 3 . . . Hover . | . . . . . . Flight 5 | . . . . . 5 Fastest Speed 50 | 50 80 80 120 190 124 Average Speed 140 | 120 98 119 139 190 210 Slowest Speed 450 | 200 120 120 190 190 450 Overloaded Moves . | . . . . . . Propulsion Burnouts . | . . . . . . Robots Hopped . | . . . . . . Potential Cave-ins 7 | 7 . . . . . Cave-ins Triggered 1 | 1 . . . . . Exploration Rate (%) 35 | 6 31 43 92 15 27 Regions Visited 5 Branch Regions 3 Pre-discovered Areas 3 | . . 2 1 . . Known Exits Taken . | . . . . . . Unknown Exits Taken 5 | 1 1 1 1 1 . Scrap Searched 1 | . . . . 1 . Spaces Dug 7 | 7 . . . . . Terrain Destroyed 9 | 8 . . . . 1 Melee . | . . . . . . Projectile 9 | 8 . . . . 1 AOE . | . . . . . . Terrain Rammed . | . . . . . . Walls Destroyed . | . . . . . . Machines Disabled . | . . . . . . Actions | -11 -10 -10 -10 -9 -8 --------- Run | Yrd Mat Min Exi Min Mat Total 2039 | 194 368 388 676 52 361 Wait 141 | 4 36 42 29 2 28 Move 1693 | 143 277 327 633 44 269 Hop . | . . . . . . Pick Up 36 | 10 9 3 6 1 7 Fast Attach 16 | 7 2 . . . 7 Attach 10 | 1 1 . . 1 7 Detach 9 | 1 . . . . 8 Swap 27 | 4 8 7 3 . 5 Drop 33 | 2 9 5 4 1 12 Fire 72 | 21 26 4 . 3 18 Melee . | . . . . . . Ram . | . . . . . . Kick . | . . . . . . Crush . | . . . . . . Escape Stasis 1 | 1 . . . . . Rewire 1 | . . . 1 . . Trap . | . . . . . . Miscellaneous . | . . . . . . Route ------- -11/Scrapyard -10/Materials (discovered 2 exits: [*Min] / [*Sub]) -10/Mines -10/Exiles (discovered 2 exits: [*Min x2]) -9/Mines -8/Materials History --------- Turn | Location | Event 14 | -11/Scrapyard | Discovered new exit (range 15) 227 | -11/Scrapyard | Crushed by falling debris 228 | -11/Scrapyard | Core integrity fell below 50% 280 | -11/Scrapyard | Entered Materials 300 | -10/Materials | Build established: Mutant 416 | -10/Materials | Discovered new exit (range 15) 498 | -10/Materials | Discovered new exit (range 10) 553 | -10/Materials | Repaired Aluminum Leg 690 | -10/Materials | Entered Mines 691 | -10/Mines | Met a Derelict testing a Signal Generator 693 | -10/Mines | Found Signal Generator 706 | -10/Mines | Learned location of Mines (-9) 967 | -10/Mines | Learned location of Storage (-7) 1106 | -10/Mines | Deemed a non-threat by the Exiles lab entrance 1106 | -10/Mines | Discovered new exit (range 5) 1155 | -10/Mines | Entered Exiles 1155 | -10/Exiles | Accompanied by 2 allies 1185 | -10/Exiles | Led the pair of lost Derelicts to a safe place 1198 | -10/Exiles | Met 8R-AWN 1220 | -10/Exiles | Met EX-HEX 1270 | -10/Exiles | Met EX-DEC 1308 | -10/Exiles | Visited The Gauntlet 1445 | -10/Exiles | Learned location of Zion (-6) 1500 | -10/Exiles | Discovered new exit (range 14) 1629 | -10/Exiles | Met EX-BIN 1646 | -10/Exiles | Aligned with FarCom system 1647 | -10/Exiles | Given EX-Vault access code 1702 | -10/Exiles | Opened EX-Vault 1710 | -10/Exiles | Found Prototype Storage 1716 | -10/Exiles | Found Prototype Device 1717 | -10/Exiles | Identified Cloak of Protection 1722 | -10/Exiles | Found Deploy-a-Sentry 1822 | -10/Exiles | Warned to stay clear of 0b10 Research branches 2025 | -10/Exiles | Discovered new exit (range 14) 2080 | -10/Exiles | Stole three prototypes: Superbattery, Cloak of Protection, Deploy-a-Sentry 2080 | -10/Exiles | Entered Mines 2106 | -9/Mines | Assembled infested the area 2111 | -9/Mines | Assisted by a Guerilla fighting off Assembled 2137 | -9/Mines | Destroyed YI-UF0 2167 | -9/Mines | Lost 4 parts (1p2n1w) 2169 | -9/Mines | Discovered new exit (range 4) 2177 | -9/Mines | Entered Materials 2177 | -8/Materials | Evolved 4 slots: Propulsion x2, Utility x2 2519 | -8/Materials | DAS Turret deployed 2877 | -8/Materials | Self-destructed Last Messages --------------- 02658_ Dropped Aerolev Unit. 02728_ Acquired 174 matter. 02739_ Dropped Lgt. Assault Rifle. 02739_ Acquired Mni. Grenade Launcher. 02746_ Acquired Adv. Targeting Computer. 02751_ Acquired 10 matter. 02786_ Acquired Med. Armor Plating. 02826_ Slug penetrates Wall. 02833_ W-25 Informer distress signal alerts nearby ally. 02834_ ALERT: Hostiles spotted, dispatching reinforcements to Terminal M011. 02835_ Penetrated by Slug. 02847_ H-55 Commando destroyed. 02847_ Hadron Collector disabled. 02850_ Acquired 44 matter. 02865_ Hpw. Shotgun destroyed. 02868_ Critical hit (Burn: +37). 02871_ Med. Armor Plating destroyed. 02871_ Imp. Aluminum Leg destroyed. Map ----- +----------------------------------------------------+ | ?????????????????????????????????????????????????? | | ?????????????????????????????????????????????????? | | ?????????????????????????????????????????????????? | | ?????????????????????????????????????????????????? | | ?????????????????????????????????????????????????? | | ?????????????????????????????????????????????????? | | ?????????????????????????????????????????????????? | | ?????????????????????????????????????????????????? | | ?????????????????????????????????????????????????? | | ?????????????????????????????????????????????????? | | ?????????????????????????????????????????????????? | | ?????????????????????????????????????????????????? | | ??????????########???????????????????????????????? | | ??????????########???????????????????????????????? | | ??????????## ???????????????????????????????? | | ??????????## ????????????????????????????????? | | ??????????## ??????????????????? # ??????????? | | ??????????## ??????????????????? # ??????????? | | ??????????## ????###### ?????? ##??????????? | | ############ ################ ###?????????? | | ###############+####### ##### ##?????????? | | g Y ##?????????? | | " g ##?????????? | | Y g ?????????? | | +#########+####+####### r ####?????????????????? | | # # ######@######?????????????????? | | %# " # """###### ####???????????????????? | | # T # ""##??## ##?????????????????????? | | # " # """##??##o##?????????????????????? | | # """ # ! """##??## ##?????????????????????? | | # """ # ##??## ##?????????????????????? | | [ # """ !##w######??##k##?????????????????????? | | ### ## ######??## ##?????????????????????? | | ############## ????????## ##?????????????????????? | | ?############# ???????? ?????????????????????? | | ????????????## ?????????? ???????????????????????? | | ???????????? ?????w???T???????????????????????? | | ????????????####????????? ???????????????????????? | | ????????????## ????????w ?g?????????????????????? | | ?????????????????????????????????????????????????? | | ??????????????????????????g??????????????????????? | | ?????????????????????????????????????????????????? | | ??????????????????????????g??????????????????????? | | ?????????????????????????????????????????????????? | | ?????????????????????????????????????????????????? | | ?????????????????????????????????????????????????? | | ?????????????????????????????????????????????????? | | ?????????????????????????????????????????????????? | | ?????????????????????????????????????????????????? | | ?????????????????????????????????????????????????? | +----------------------------------------------------+ Best States ------------- Heat Dissipation 31 Energy Generation 14 Energy Capacity 1900 Matter Stores 300 Matter Capacity 300 Sight Range 16 Terrain Scan Range 16 Terrain Scan Density 10 Cloak Strength 5 Armor Coverage 225 Resistance: KI 20 Resistance: TH 20 Resistance: EX 20 Resistance: EM 20 Resistance: I 20 Resistance: S 20 Resistance: P 20 Evasion (%) 55 Targeting Accuracy 8 Offensive Hacking 10 Item Schematics ----------------- None Robot Schematics ------------------ None Fabricated ------------ Nothing Repaired ---------- Aluminum Leg | 4% | -10/Materials Studied --------- None Alien Tech Used ----------------- None Achievements -------------- Unlikely Earthworm Challenges ------------ None Game ------ Seed CompactInsulationPower Manual? 0 Play Time 01:28:03 Cumulative 41.3 hours Start 2026.02.14 @ 21:01:59 End 2026.02.16 @ 22:01:34 Sessions 12 Manual Loads 0 Difficulty Adventurer Special Mode None Game No. 13 Rogue 0 Adventurer 13 Explorer 0 Win Type - Total 0 Types 0/0/0/0/0/0/0/0/0/0 Lore% 10 Gallery% 21 Achievement% 14 Wizard Run 0 Options --------- Layout 1 ASCII 0 Keyboard 1 Movement Numpad Keybinds 0 Fullscreen 1 Font 48/Swanston Map View 50x35 Zoom Use 0% Tactical HUD 1 Map Filters NONE Filters NONE Steam 1 RUN: 710d154c-88d5-4b1e-8815-f99894ff7909